fUST/lending_fUST_20240518
["ID","MTS","AMOUNT","RATE_DAILY","PERIOD"]
[327369970,1716025841232,-500.0,0.00016712,2]
[327369971,1716025841242,-500.0,0.00016712,2]
[327369972,1716025841251,-151.0,0.00016712,2]
[327369973,1716025841260,-500.0,0.00016712,2]
[327369974,1716025841270,-500.0,0.00016712,2]
[327369975,1716025841279,-512.46,0.00016712,2]
[327369976,1716025841288,-500.0,0.00016712,2]
[327369977,1716025841297,-500.0,0.00016712,2]
[327369978,1716025841307,-500.0,0.00016712,2]
[327369979,1716025841317,-632.27,0.00016712,2]
[327369980,1716025841326,-500.0,0.00016712,2]
[327369981,1716025841335,-502.50036478,0.00016712,2]
[327369982,1716025841344,-526.51,0.00016712,2]
[327369983,1716025841353,-500.0,0.00016712,2]
[327369984,1716025841363,-453.20965665,0.00016712,2]
[327369985,1716025841372,-500.0,0.00016712,2]
[327369986,1716025841381,-500.0,0.00016712,2]
[327369987,1716025841391,-500.0,0.00016712,2]
[327369988,1716025841401,-500.0,0.00016712,2]
[327369989,1716025841410,-500.0,0.00016712,2]
[327369990,1716025841419,-151.0,0.00016712,2]
[327369991,1716025841428,-500.0,0.00016712,2]
[327369992,1716025841438,-151.0,0.00016712,2]
[327369993,1716025841447,-500.0,0.00016712,2]
[327369994,1716025841456,-2001.89,0.00016712,2]
[327369995,1716025841466,-500.0,0.00016712,2]
[327369996,1716025841474,-500.0,0.00016712,2]
[327369997,1716025841483,-500.0,0.00016712,2]
[327369998,1716025841493,-500.0,0.00016712,2]
[327369999,1716025841503,-500.0,0.00016712,2]
[327370000,1716025841512,-500.0,0.00016712,2]
[327370001,1716025841522,-500.0,0.00016712,2]
[327370002,1716025841531,-505.65,0.00016712,2]
[327370003,1716025841541,-500.0,0.00016712,2]
[327370004,1716025841550,-624.55,0.00016712,2]
[327370005,1716025841560,-500.0,0.00016712,2]
[327370006,1716025841569,-847.79865,0.00016712,2]
[327370007,1716025841578,-1959.79,0.00016712,2]
[327370008,1716025841588,-500.0,0.00016712,2]
[327370009,1716025841597,-847.79865,0.00016712,2]
[327370010,1716025841608,-500.0,0.00016712,2]
[327370011,1716025841618,-500.0,0.00016712,2]
[327370012,1716025841627,-500.0,0.00016712,2]
[327370013,1716025841637,-606.77,0.00016712,2]
[327370014,1716025841646,-500.0,0.00016712,2]
[327370015,1716025841656,-500.0,0.00016712,2]
[327370016,1716025841665,-500.0,0.00016712,2]
[327370017,1716025841674,-500.0,0.00016712,2]
[327370018,1716025841683,-500.0,0.00016712,2]
[327370019,1716025841693,-500.0,0.00016712,2]
[327370020,1716025841702,-500.0,0.00016712,2]
[327370021,1716025841711,-266.8,0.00016862,3]
[327370022,1716025841720,-266.8,0.00016862,2]
[327370023,1716025841735,-5375.85,0.00016984,2]
[327370024,1716025841744,-5375.85,0.00016985,2]
[327370025,1716025841753,-151.0,0.00016986,2]
[327370026,1716025841762,-1336.76,0.00016986,2]
[327370027,1716025841773,-500.0,0.00016986,2]
[327370028,1716025841782,-500.0,0.00016986,2]
[327370029,1716025841791,-500.0,0.00016986,2]
[327370030,1716025841801,-500.0,0.00016986,2]
[327370031,1716025841811,-552.3,0.00016986,2]
[327370032,1716025841821,-500.0,0.00016986,2]
[327370033,1716025841830,-319.59841999,0.00016986,2]
[327370034,1716025841839,-500.0,0.00016986,2]
[327370035,1716025841848,-500.0,0.00016986,2]
[327370036,1716025841858,-500.0,0.00016986,2]
[327370037,1716025841867,-500.0,0.00016986,2]
[327370038,1716025841876,-500.0,0.00016986,2]
[327370039,1716025841886,-500.0,0.00016986,2]
[327370040,1716025841894,-500.0,0.00016986,2]
[327370041,1716025841903,-500.0,0.00016986,2]
[327370042,1716025841912,-242.82,0.00016986,2]
[327370043,1716025841922,-500.0,0.00016986,2]
[327370044,1716025841931,-381.92,0.00016986,2]
[327370045,1716025841940,-500.0,0.00016986,2]
[327370046,1716025841950,-500.0,0.00016986,2]
[327370047,1716025841960,-500.0,0.00016986,2]
[327370048,1716025841970,-247.41,0.00016986,2]
[327370049,1716025841980,-635.9,0.00016986,2]
[327370050,1716025841989,-196.92,0.00016986,2]
[327370051,1716025841999,-500.0,0.00016986,2]
[327370052,1716025842008,-500.0,0.00016986,2]
[327370053,1716025842017,-500.0,0.00016986,2]
[327370054,1716025842026,-404.29,0.00016986,2]
[327370055,1716025842035,-500.0,0.00016986,2]
[327370056,1716025842043,-500.0,0.00016986,2]
[327370057,1716025842052,-500.0,0.00016986,2]
[327370058,1716025842061,-500.0,0.00016986,2]
[327370059,1716025842071,-366.512235,0.00016986,2]
[327370060,1716025842081,-366.512235,0.00016986,2]
[327370061,1716025842090,-151.0,0.00016986,2]
[327370062,1716025842098,-154.530142,0.00016986,2]
[327370063,1716025842107,-151.0,0.00016986,2]
[327370064,1716025842117,-154.530142,0.00016986,2]
[327370065,1716025842125,-513.86,0.00016986,2]
[327370066,1716025842134,-500.0,0.00016986,2]
[327370067,1716025842144,-500.0,0.00016986,2]
[327370068,1716025842153,-500.0,0.00016986,2]
[327370069,1716025842163,-1332.12,0.00016986,2]
[327370070,1716025842173,-500.0,0.00016986,2]
[327370071,1716025842182,-500.0,0.00016986,2]
[327370072,1716025842193,-500.0,0.00016986,2]
[327370073,1716025842204,-500.0,0.00016986,2]
[327370074,1716025842215,-500.0,0.00016986,2]
[327370075,1716025842224,-500.0,0.00016986,2]
[327370076,1716025842234,-612.41,0.00016986,2]
[327370077,1716025842243,-727.89,0.00016986,2]
[327370078,1716025842253,-610.36,0.00016986,2]
[327370079,1716025842262,-278.183032,0.00016986,2]
[327370080,1716025842271,-278.183032,0.00016986,2]
[327370081,1716025842281,-500.0,0.00016986,2]
[327370082,1716025842291,-425.69,0.00016986,2]
[327370083,1716025842300,-500.0,0.00016986,2]
[327370084,1716025842309,-500.0,0.00016986,2]
[327370085,1716025842318,-500.0,0.00016986,2]
[327370086,1716025842327,-151.0,0.00016986,2]
[327370087,1716025842337,-252.12,0.00016986,2]
[327370088,1716025842346,-500.0,0.00016986,2]
[327370089,1716025842355,-500.0,0.00016986,2]
[327370090,1716025842364,-195.12853048,0.00016986,2]
[327370091,1716025842381,-304.87146952,0.00016986,2]
[327370092,1716025842391,-151.0,0.00016986,2]
[327370093,1716025842400,-501.05446688,0.00016986,2]
[327370094,1716025842409,-500.0,0.00016986,2]
[327370095,1716025842418,-512.46,0.00016986,2]
[327370096,1716025842427,-294.61159236,0.00016986,2]
[327370097,1716025842647,-500.0,0.00016438,2]
[327370098,1716025842657,-500.0,0.00016438,2]
[327370099,1716025842666,-13.33979245,0.00016712,2]
[327370100,1716025842678,-486.66020755,0.00016712,2]
[327370101,1716025842687,-150.0,0.00016862,3]
[327370102,1716025842696,-150.0,0.00016862,2]
[327370103,1716025842705,-151.89453157,0.00016986,2]
[327370104,1716025842715,-500.0,0.00016986,2]
[327370105,1716025842726,-500.0,0.00016986,2]
[327370106,1716025842737,-632.27,0.00016986,2]
[327370107,1716025842746,-500.0,0.00016986,2]
[327370108,1716025842755,-526.51,0.00016986,2]
[327370109,1716025842765,-155.99134487,0.00016986,2]
[327370110,1716025842774,-500.0,0.00016986,2]
[327370111,1716025842783,-500.0,0.00016986,2]
[327370112,1716025842792,-450.42082688,0.00016986,2]
[327370147,1716025844936,165.32,0.00010959,2]
[327370148,1716025844976,-6012.51357075,0.00016338,2]
[327370149,1716025844988,-5380.23107841,0.00016338,2]
[327370150,1716025845016,273.37336231,9.9e-05,2]
[327370151,1716025845083,3630.39037261,0.00010959,2]
[327370219,1716025852425,273.37336231,9.9e-05,2]
[327370220,1716025853819,826.64,0.00010959,2]
[327370221,1716025861434,273.37336231,9.9e-05,2]
[327370222,1716025864870,3339.72783384,0.00010959,2]
[327370223,1716025870355,273.37336231,9.9e-05,2]
[327370225,1716025878302,273.37336231,9.9e-05,2]
[327370226,1716025887363,273.37336231,9.9e-05,2]
[327370227,1716025895188,273.37336231,9.9e-05,2]
[327370228,1716025904468,273.37336231,9.9e-05,2]
[327370229,1716025912675,273.37336231,9.9e-05,2]
[327370237,1716025936674,210.50549874,0.0001541,30]
[327370238,1716025980288,1275.3317604,0.0001,3]
[327370245,1716026747154,-152.1911988,8.033e-05,2]
[327370246,1716026826133,-1097.53367755,8.026e-05,2]
[327370247,1716026833119,-2597.41542727,8.025e-05,2]
[327370248,1716026833140,-483.88762413,8.026e-05,2]
[327370249,1716026833160,-1657.56300352,8.026e-05,2]
[327370250,1716026839091,-521.28631068,8.024e-05,2]
[327370251,1716026839113,-4058.0057858,8.026e-05,2]
[327370252,1716026846169,-492.86440031,8.025e-05,2]
[327370253,1716026846188,-690.19911136,8.025e-05,2]
[327370254,1716026846208,-3843.95852033,8.026e-05,2]
[327370255,1716026846228,-15814.877098,8.026e-05,2]
[327370257,1716026947193,-1885.45852368,7.393e-05,2]
[327370258,1716026947214,-803.39175304,7.394e-05,2]
[327370259,1716026947235,-2114.46454517,7.394e-05,2]
[327370260,1716026947255,-154.7215013,7.394e-05,2]
[327370261,1716026947276,-10508.75516608,7.395e-05,2]
[327370262,1716026947297,-2678.78839717,7.396e-05,2]
[327370263,1716026947319,-1094.99548197,7.396e-05,2]
[327370264,1716026947341,-24900.0,7.397e-05,2]
[327370265,1716026947362,-690.19911136,7.938e-05,2]
[327370266,1716026947383,-1338.92794901,7.939e-05,2]
[327370267,1716026947405,-864.51523193,7.942e-05,2]
[327370268,1716026947426,-362.63974419,8.024e-05,2]
[327370269,1716026947446,-26207.82489209,8.028e-05,2]
[327370270,1716026947466,-677.33465905,8.029e-05,2]
[327370271,1716026947487,-328.22139918,8.029e-05,2]
[327370272,1716026947507,-154.7215013,8.029e-05,2]
[327370273,1716026947529,-210.02683327,8.029e-05,2]
[327370274,1716026947549,-909.39943205,8.029e-05,2]
[327370275,1716026947570,-547.31451616,8.029e-05,2]
[327370276,1716026947590,-154.73694719,8.029e-05,2]
[327370277,1716026947611,-154.81422293,8.029e-05,2]
[327370278,1716026947631,-721.91050427,8.029e-05,2]
[327370279,1716026947651,-1581.42130168,8.035e-05,2]
[327370280,1716026947672,-250.0,8.036e-05,2]
[327370281,1716026947693,-1555.32426368,9.8e-05,2]
[327370282,1716026947712,-578.69221667,0.00010458,2]
[327370283,1716026947732,-442.08558607,0.00010458,2]
[327370284,1716026947751,-522.61290648,0.00010458,2]
[327370285,1716026947771,-977.58833984,0.00010459,2]
[327370286,1716026947790,-154.73694719,0.00010459,2]
[327370287,1716026947810,-266.95,0.00010959,2]
[327370288,1716026947829,-509.07,0.00010959,2]
[327370289,1716026947848,-424.22,0.00010959,2]
[327370290,1716026947869,-353.52,0.00010959,2]
[327370291,1716026947889,-294.6,0.00010959,2]
[327370292,1716026947909,-245.5,0.00010959,2]
[327370293,1716026947929,-204.58,0.00010959,2]
[327370294,1716026947951,-170.49,0.00010959,2]
[327370295,1716026947972,-852.45,0.00010959,2]
[327370296,1716026947993,-2017.62656984,0.000129,2]
[327370297,1716026948014,-290.865599,0.00013699,2]
[327370299,1716026952280,22250.08156008,7.394e-05,2]
[327370300,1716026952300,1220.02005115,7.394e-05,2]
[327370301,1716026953129,-5753.92671613,7.394e-05,2]
[327370302,1716026956101,-5631.011,7.394e-05,2]
[327370303,1716026958093,-18104.46904,7.394e-05,2]
[327370304,1716026958121,-6443.05748707,7.394e-05,2]
[327370305,1716026959112,2114.46454517,7.395e-05,2]
[327370306,1716026969174,273.37336231,9.9e-05,2]
[327370308,1716026975424,154.73694719,8.026e-05,2]
[327370309,1716026977016,146.00345202,9.9e-05,2]
[327370310,1716026977038,127.36991029,9.9e-05,2]
[327370311,1716026985892,273.37336231,9.9e-05,2]
[327370312,1716026993848,273.37336231,9.9e-05,2]
[327370314,1716027000129,-165.65455623,0.00014896,2]
[327370315,1716027000150,-2025.96544377,0.00014991,2]
[327370316,1716027002584,273.37336231,9.9e-05,2]
[327370317,1716027010390,273.37336231,9.9e-05,2]
[327370318,1716027018457,273.37336231,9.9e-05,2]
[327370319,1716027026505,273.37336231,9.9e-05,2]
[327370348,1716027031947,-803.39175304,0.00014989,2]
[327370350,1716027031957,-690.19911136,0.0001499,2]
[327370351,1716027031966,-607.54690871,0.00014991,2]
[327370353,1716027031975,-1288.16012891,0.00014996,2]
[327370722,1716027035743,273.37336231,9.9e-05,2]
[327370976,1716027038373,-655.72931219,0.00014996,2]
[327370978,1716027038382,-1450.2482319,0.00014997,2]
[327370980,1716027038392,-1339.52430237,0.00014998,2]
[327370982,1716027038401,-1091.68962702,0.00014998,2]
[327370984,1716027038411,-3116.35193178,0.00014998,2]
[327370986,1716027038420,-219.18319864,0.00014998,2]
[327370988,1716027038431,-956.67485693,0.00014998,2]
[327370990,1716027038440,-1884.25402905,0.00014998,2]
[327371005,1716027038569,-157.82356406,0.00014998,2]
[327371007,1716027038579,-1453.01014232,0.00014998,2]
[327371009,1716027038588,-2669.74226315,0.00014998,2]
[327371011,1716027038597,-1904.1460645,0.00014999,2]
[327371013,1716027038606,-16785.24358246,0.00014999,2]
[327371015,1716027038615,-942.53705457,0.00015,2]
[327371017,1716027038624,-23745.91338918,0.00015,2]
[327371019,1716027038636,-56254.08661082,0.00015,2]
[327371021,1716027038645,-1149.07076386,0.00015,2]
[327371023,1716027038654,-3699.56949019,0.00015,2]
[327371025,1716027038664,-2400.65057528,0.00015,2]
[327371027,1716027038673,-2107.5414282,0.00015,2]
[327371029,1716027038682,-165.65455622,0.00015377,2]
[327371031,1716027038695,-330.86077589,0.00015404,2]
[327371033,1716027038704,-9397.51147343,0.00015405,2]
[327371035,1716027038712,-653.08641699,0.00015406,2]
[327371037,1716027038722,-362.44648882,0.00015406,2]
[327371039,1716027038730,-154.7215013,0.00015406,2]
[327371041,1716027038739,-12519.60837291,0.00015406,2]
[327371043,1716027038749,-236.5182214,0.00015406,2]
[327371045,1716027038758,-194.42788305,0.00015406,2]
[327371047,1716027038767,-958.72793949,0.00015408,2]
[327371049,1716027038776,-452.3303047,0.00015408,2]
[327371051,1716027038785,-486.58772314,0.00015408,2]
[327371053,1716027038795,-158.34599373,0.00015408,2]
[327371055,1716027038804,-628.92344938,0.00015408,2]
[327371057,1716027038813,-345.92660992,0.00015408,2]
[327371059,1716027038822,-250.70868332,0.00015408,2]
[327371061,1716027038831,-285.71224732,0.0001541,2]
[327371063,1716027038840,-11917.8584957,0.0001541,2]
[327371065,1716027038849,-7356.80908898,0.0001541,2]
[327371067,1716027038858,-283.50341374,0.0001541,2]
[327371069,1716027038868,-165.65455622,0.00015857,2]
[327371071,1716027038878,-2000.0,0.000159,2]
[327371073,1716027038887,-7967.64444353,0.00016,2]
[327371075,1716027038896,-12703.0,0.00016,2]
[327371077,1716027038905,-257.9985766,0.00016337,2]
[327371079,1716027038915,-165.65455622,0.00016338,2]
[327371081,1716027038926,-249.10502221,0.00016437,2]
[327371083,1716027038934,-155.2212344,0.00016437,2]
[327371085,1716027038943,-12217.18939071,0.00016438,3]
[327371087,1716027038952,-500.0,0.00016438,2]
[327371089,1716027038961,-500.0,0.00016438,2]
[327371091,1716027038971,-500.0,0.00016438,2]
[327371093,1716027038979,-543.29452259,0.00016438,2]
[327371095,1716027038989,-500.0,0.00016438,2]
[327371097,1716027038998,-501.63240762,0.00016438,2]
[327371099,1716027039008,-500.0,0.00016438,2]
[327371101,1716027039017,-500.63121711,0.00016438,2]
[327371103,1716027039027,-500.76911326,0.00016438,2]
[327371105,1716027039036,-500.0,0.00016438,2]
[327371107,1716027039045,-500.0,0.00016438,2]
[327371109,1716027039055,-500.0,0.00016438,2]
[327371111,1716027039064,-500.0,0.00016438,2]
[327371113,1716027039073,-500.0,0.00016438,2]
[327371115,1716027039084,-500.0,0.00016438,2]
[327371117,1716027039096,-500.0,0.00016438,2]
[327371119,1716027039105,-500.0,0.00016438,2]
[327371121,1716027039115,-500.0,0.00016438,2]
[327371123,1716027039126,-500.0,0.00016438,2]
[327371125,1716027039135,-500.0,0.00016438,2]
[327371126,1716027039145,-249.22294522,0.00016438,2]
[327371127,1716027039154,-500.0,0.00016438,2]
[327371128,1716027039165,-501.98106738,0.00016438,2]
[327371129,1716027039178,-500.0,0.00016438,2]
[327371130,1716027039187,-507.2567136,0.00016438,2]
[327371132,1716027039196,-615.5819329,0.00016438,2]
[327371134,1716027039206,-503.16445002,0.00016438,2]
[327371136,1716027039215,-500.0,0.00016438,2]
[327371138,1716027039224,-442.77818807,0.00016438,2]
[327371140,1716027039234,-500.0,0.00016438,2]
[327371141,1716027039244,-500.0,0.00016438,2]
[327371143,1716027039255,-500.0,0.00016438,2]
[327371145,1716027039265,-500.0,0.00016438,2]
[327371147,1716027039275,-501.43276924,0.00016438,2]
[327371149,1716027039285,-500.0,0.00016438,2]
[327371151,1716027039294,-500.0,0.00016438,2]
[327371153,1716027039304,-500.0,0.00016438,2]
[327371155,1716027039314,-500.0,0.00016438,2]
[327371157,1716027039323,-500.0,0.00016438,2]
[327371159,1716027039333,-500.0,0.00016438,2]
[327371162,1716027039343,-697.56,0.00016438,2]
[327371164,1716027039353,-500.0,0.00016438,2]
[327371165,1716027039363,-500.0,0.00016438,2]
[327371168,1716027039372,-151.67291429,0.00016438,2]
[327371169,1716027039381,-500.0,0.00016438,2]
[327371171,1716027039391,-500.0,0.00016438,2]
[327371173,1716027039401,-500.0,0.00016438,2]
[327371176,1716027039411,-500.0,0.00016438,2]
[327371177,1716027039420,-500.0,0.00016438,2]
[327371180,1716027039434,-168.99092306,0.00016438,2]
[327371183,1716027039443,-500.0,0.00016438,2]
[327371186,1716027039454,-500.0,0.00016438,2]
[327371187,1716027039464,-606.48,0.00016438,2]
[327371189,1716027039473,-361.61461553,0.00016438,2]
[327371192,1716027039483,-500.0,0.00016438,2]
[327371193,1716027039492,-500.0,0.00016438,2]
[327371195,1716027039502,-500.0,0.00016438,2]
[327371197,1716027039511,-500.0,0.00016438,2]
[327371200,1716027039521,-500.0,0.00016438,2]
[327371202,1716027039531,-500.0,0.00016438,2]
[327371205,1716027039540,-500.0,0.00016438,2]
[327371207,1716027039551,-500.0,0.00016438,2]
[327371209,1716027039560,-500.0,0.00016438,2]
[327371211,1716027039569,-312.68,0.00016438,2]
[327371213,1716027039579,-500.0,0.00016438,2]
[327371215,1716027039588,-440.35962986,0.00016438,2]
[327371217,1716027039597,-500.0,0.00016438,2]
[327371219,1716027039607,-500.0,0.00016438,2]
[327371221,1716027039616,-500.0,0.00016438,2]
[327371223,1716027039625,-500.0,0.00016438,2]
[327371225,1716027039634,-500.0,0.00016438,2]
[327371227,1716027039643,-500.0,0.00016438,2]
[327371229,1716027039653,-500.0,0.00016438,2]
[327371231,1716027039663,-500.0,0.00016438,2]
[327371233,1716027039674,-504.03638865,0.00016438,2]
[327371235,1716027039684,-500.0,0.00016438,2]
[327371237,1716027039693,-500.0,0.00016438,2]
[327371239,1716027039703,-500.0,0.00016438,2]
[327371241,1716027039712,-500.0,0.00016438,2]
[327371242,1716027039722,-500.0,0.00016438,2]
[327371245,1716027039731,-500.0,0.00016438,2]
[327371247,1716027039743,-500.0,0.00016438,2]
[327371249,1716027039756,-500.0,0.00016438,2]
[327371252,1716027039769,-500.0,0.00016438,2]
[327371254,1716027039781,-500.0,0.00016438,2]
[327371256,1716027039794,-500.0,0.00016438,2]
[327371258,1716027039806,-500.0,0.00016438,2]
[327371261,1716027039818,-500.0,0.00016438,2]
[327371263,1716027039828,-500.0,0.00016438,2]
[327371265,1716027039838,-500.0,0.00016438,2]
[327371267,1716027039851,-500.0,0.00016438,2]
[327371269,1716027039862,-500.0,0.00016438,2]
[327371271,1716027039873,-500.0,0.00016438,2]
[327371274,1716027039885,-500.0,0.00016438,2]
[327371276,1716027039897,-500.0,0.00016438,2]
[327371278,1716027039908,-500.0,0.00016438,2]
[327371281,1716027039920,-500.0,0.00016438,2]
[327371283,1716027039932,-500.0,0.00016438,2]
[327371285,1716027039944,-500.0,0.00016438,2]
[327371287,1716027039956,-402.24,0.00016438,2]
[327371290,1716027039970,-500.0,0.00016438,2]
[327371292,1716027039982,-628.60831582,0.00016438,2]
[327371294,1716027039994,-500.0,0.00016438,2]
[327371297,1716027040006,-500.0,0.00016438,2]
[327371299,1716027040018,-500.0,0.00016438,2]
[327371301,1716027040029,-500.0,0.00016438,2]
[327371303,1716027040040,-500.0,0.00016438,2]
[327371305,1716027040051,-500.0,0.00016438,2]
[327371308,1716027040062,-500.0,0.00016438,2]
[327371310,1716027040074,-500.0,0.00016438,2]
[327371312,1716027040091,-500.0,0.00016438,2]
[327371314,1716027040102,-500.0,0.00016438,2]
[327371317,1716027040113,-500.0,0.00016438,2]
[327371319,1716027040124,-568.28,0.00016438,2]
[327371321,1716027040133,-500.0,0.00016438,2]
[327371323,1716027040143,-500.0,0.00016438,2]
[327371325,1716027040153,-500.0,0.00016438,2]
[327371327,1716027040165,-500.0,0.00016438,2]
[327371329,1716027040178,-500.0,0.00016438,2]
[327371331,1716027040187,-325.31449427,0.00016438,2]
[327371334,1716027040199,-500.0,0.00016438,2]
[327371336,1716027040210,-500.0,0.00016438,2]
[327371338,1716027040221,-1276.61,0.00016438,2]
[327371340,1716027040233,-500.0,0.00016438,2]
[327371343,1716027040244,-500.0,0.00016438,2]
[327371345,1716027040255,-578.2,0.00016438,2]
[327371347,1716027040266,-500.0,0.00016438,2]
[327371349,1716027040277,-500.0,0.00016438,2]
[327371352,1716027040291,-500.0,0.00016438,2]
[327371354,1716027040303,-500.0,0.00016438,2]
[327371356,1716027040315,-500.0,0.00016438,2]
[327371359,1716027040326,-685.75,0.00016438,2]
[327371361,1716027040336,-1959.79,0.00016438,2]
[327371363,1716027040346,-500.0,0.00016438,2]
[327371365,1716027040355,-500.0,0.00016438,2]
[327371367,1716027040365,-500.0,0.00016438,2]
[327371369,1716027040375,-500.0,0.00016438,2]
[327371371,1716027040386,-500.0,0.00016438,2]
[327371373,1716027040398,-500.0,0.00016438,2]
[327371376,1716027040410,-500.0,0.00016438,2]
[327371378,1716027040421,-500.0,0.00016438,2]
[327371380,1716027040433,-500.0,0.00016438,2]
[327371382,1716027040446,-500.0,0.00016438,2]
[327371384,1716027040455,-500.0,0.00016438,2]
[327371386,1716027040466,-500.0,0.00016438,2]
[327371388,1716027040477,-500.0,0.00016438,2]
[327371390,1716027040488,-2001.89,0.00016438,2]
[327371393,1716027040499,-500.0,0.00016438,2]
[327371395,1716027040510,-500.0,0.00016438,2]
[327371397,1716027040521,-246.36773708,0.00016438,2]
[327371421,1716027040739,-253.63226292,0.00016438,2]
[327371424,1716027040750,-500.0,0.00016438,2]
[327371426,1716027040760,-500.0,0.00016438,2]
[327371428,1716027040770,-500.0,0.00016438,2]
[327371430,1716027040780,-500.0,0.00016438,2]
[327371432,1716027040791,-500.0,0.00016438,2]
[327371434,1716027040802,-505.65,0.00016438,2]
[327371436,1716027040812,-500.0,0.00016438,2]
[327371438,1716027040823,-456.28846172,0.00016438,2]
[327371477,1716027041186,-501.98208771,0.00016338,2]
[327371658,1716027043266,-34311.94094349,0.00016338,2]
[327371659,1716027043278,-1699.62818446,0.00016338,2]
[327371660,1716027043288,-1804.323423,0.00016338,2]
[327371661,1716027043299,-3012.47132687,0.00016338,2]
[327371671,1716027043527,-6215.09015051,0.00016338,2]
[327371674,1716027043539,-5379.74226234,0.00016338,2]
[327371676,1716027043622,273.37336231,9.9e-05,2]
[327371818,1716027046171,-803.39175304,0.00016337,2]
[327371820,1716027046181,-3513.58391992,0.00016338,2]
[327372265,1716027051756,273.37336231,9.9e-05,2]
[327372929,1716027058354,-2128.02458193,0.00015,2]
[327373071,1716027059730,273.37336231,9.9e-05,2]
[327373770,1716027069059,273.37336231,9.9e-05,2]
[327373771,1716027078081,285.71224732,0.00015,2]
[327373772,1716027078875,273.37336231,9.9e-05,2]
[327373774,1716027088072,273.37336231,9.9e-05,2]
[327373775,1716027094009,261.84474801,0.00015,2]
[327373776,1716027097151,230.9249735,9.9e-05,2]
[327373777,1716027097175,42.44838881,9.9e-05,2]
[327373778,1716027106180,273.37336231,9.9e-05,2]
[327373779,1716027115032,273.37336231,9.9e-05,2]
[327373780,1716027124255,273.37336231,9.9e-05,2]
[327373781,1716027132294,273.37336231,9.9e-05,2]
[327373782,1716027140941,273.37336231,9.9e-05,2]
[327373783,1716027148923,-273.37336231,9.9e-05,2]
[327373784,1716027148945,-189.5809831,0.00014796,2]
[327373785,1716027157172,273.37336231,9.9e-05,2]
[327373786,1716027159804,234.26974614,9.9e-05,2]
[327373787,1716027165064,273.37336231,9.9e-05,2]
[327373788,1716027173700,273.37336231,9.9e-05,2]
[327373789,1716027182190,273.37336231,9.9e-05,2]
[327373790,1716027191105,273.37336231,9.9e-05,2]
[327373791,1716027199074,273.37336231,9.9e-05,2]
[327373792,1716027205704,363.0,0.00010959,2]
[327373793,1716027207119,273.37336231,9.9e-05,2]
[327373794,1716027215530,273.37336231,9.9e-05,2]
[327373795,1716027224763,273.37336231,9.9e-05,2]
[327373796,1716027225989,479.41564766,9.999e-05,2]
[327373797,1716027252964,-1418.17133306,9.899e-05,2]
[327373798,1716027252984,-1418.17133306,9.999e-05,2]
[327373800,1716027351474,-154.7215013,0.0001521,2]
[327373801,1716027351494,-1508.93583258,0.00015211,2]
[327373802,1716027364948,-690.19911136,0.00015209,2]
[327373803,1716027364969,-3699.56949019,0.0001521,2]
[327373804,1716027364990,-110.23139845,0.00015211,2]
[327373813,1716027932117,-158.51655577,9.965e-05,2]
[327373814,1716027932136,-194.45514723,9.965e-05,2]
[327373815,1716027932155,-11053.04296534,9.965e-05,2]
[327373816,1716027932176,-154.7215013,9.966e-05,2]
[327373817,1716027932196,-803.39175304,9.966e-05,2]
[327373818,1716027932216,-818.31964662,9.966e-05,2]
[327373819,1716027932236,-316.15927372,9.967e-05,2]
[327373820,1716027932254,-7894.33531896,9.967e-05,2]
[327373821,1716027932274,-3062.48237355,9.968e-05,2]
[327373822,1716027932293,-285.03925166,9.968e-05,2]